fUST/lending_fUST_20251006
["ID","MTS","AMOUNT","RATE_DAILY","PERIOD"]
[389526252,1759698638606,-1006.13,0.00016438,2]
[389526253,1759698638615,-703.74,0.00016438,2]
[389526254,1759698638625,-2623.75,0.00016438,2]
[389526255,1759698638634,-1531.23,0.00016438,2]
[389526256,1759698638645,-500.0,0.00016438,2]
[389526257,1759698638658,-500.0,0.00016438,2]
[389526258,1759698638669,-746.05,0.00016438,2]
[389526259,1759698638678,-500.0,0.00016438,2]
[389526260,1759698638687,-1256.8,0.00016438,2]
[389526261,1759698638696,-544.56,0.00016438,2]
[389526262,1759698638706,-589.58,0.00016438,2]
[389526263,1759698638715,-1817.09,0.00016438,2]
[389526264,1759698638724,-500.0,0.00016438,2]
[389526265,1759698638736,-500.0,0.00016438,2]
[389526266,1759698638745,-500.0,0.00016438,2]
[389526267,1759698638754,-2546.87,0.00016438,2]
[389526268,1759698638763,-1155.32,0.00016438,2]
[389526269,1759698638772,-2232.94,0.00016438,2]
[389526270,1759698638781,-503.21,0.00016438,2]
[389526271,1759698638791,-178.42926708,0.00016438,2]
[389526272,1759698638799,-675.13,0.00016438,2]
[389526273,1759698638808,-500.0,0.00016438,2]
[389526274,1759698638817,-619.73,0.00016438,2]
[389526275,1759698638827,-500.0,0.00016438,2]
[389526276,1759698638836,-500.0,0.00016438,2]
[389526277,1759698638845,-500.0,0.00016438,2]
[389526278,1759698638855,-1898.34,0.00016438,2]
[389526279,1759698638864,-500.0,0.00016438,2]
[389526280,1759698638874,-500.0,0.00016438,2]
[389526281,1759698638882,-500.0,0.00016438,2]
[389526282,1759698638892,-500.0,0.00016438,2]
[389526283,1759698638901,-616.67,0.00016438,2]
[389526284,1759698638910,-1044.26,0.00016438,2]
[389526285,1759698638919,-500.0,0.00016438,2]
[389526286,1759698638928,-500.0,0.00016438,2]
[389526287,1759698638938,-849.6,0.00016438,2]
[389526288,1759698638947,-516.3,0.00016438,2]
[389526289,1759698638957,-500.0,0.00016438,2]
[389526290,1759698638966,-500.0,0.00016438,2]
[389526291,1759698638975,-589.5,0.00016438,2]
[389526292,1759698638985,-172.91884292,0.00016438,2]
[389526293,1759698638994,-500.0,0.00016438,2]
[389526294,1759698639003,-1614.46,0.00016438,2]
[389526295,1759698639012,-506.14,0.00016438,2]
[389526296,1759698639021,-943.07,0.00016438,2]
[389526297,1759698639031,-807.48,0.00016438,2]
[389526298,1759698639040,-500.0,0.00016438,2]
[389526299,1759698639049,-500.0,0.00016438,2]
[389526300,1759698639059,-500.0,0.00016438,2]
[389526301,1759698639068,-500.0,0.00016438,2]
[389526302,1759698639076,-2074.48,0.00016438,2]
[389526303,1759698639085,-500.0,0.00016438,2]
[389526304,1759698639096,-500.0,0.00016438,2]
[389526305,1759698639105,-500.0,0.00016438,2]
[389526306,1759698639115,-500.0,0.00016438,2]
[389526307,1759698639124,-500.0,0.00016438,2]
[389526308,1759698639134,-500.0,0.00016438,2]
[389526309,1759698639144,-500.0,0.00016438,2]
[389526310,1759698639154,-573.89,0.00016438,2]
[389526311,1759698639164,-500.0,0.00016438,2]
[389526312,1759698639173,-557.62,0.00016438,2]
[389526313,1759698639183,-2487.78,0.00016438,2]
[389526314,1759698639193,-500.0,0.00016438,2]
[389526315,1759698639202,-500.0,0.00016438,2]
[389526316,1759698639211,-500.0,0.00016438,2]
[389526317,1759698639220,-1062.27,0.00016438,2]
[389526318,1759698639229,-629.32559894,0.00016438,2]
[389526319,1759698639239,-921.53,0.00016438,2]
[389526320,1759698639249,-4388.04,0.00016438,2]
[389526321,1759698639258,-1469.53,0.00016438,2]
[389526322,1759698639268,-500.0,0.00016438,2]
[389526323,1759698639277,-1137.41,0.00016438,2]
[389526324,1759698639286,-4246.51,0.00016438,2]
[389526325,1759698639295,-500.0,0.00016438,2]
[389526326,1759698639305,-500.0,0.00016438,2]
[389526327,1759698639315,-500.0,0.00016438,2]
[389526328,1759698639324,-500.0,0.00016438,2]
[389526329,1759698639333,-1066.23,0.00016438,2]
[389526330,1759698639342,-3511.75,0.00016438,2]
[389526331,1759698639351,-658.24,0.00016438,2]
[389526332,1759698639360,-500.0,0.00016438,2]
[389526333,1759698639369,-500.0,0.00016438,2]
[389526334,1759698639381,-1456.88,0.00016438,2]
[389526335,1759698639391,-1205.93,0.00016438,2]
[389526336,1759698639400,-500.0,0.00016438,2]
[389526337,1759698639410,-738.23,0.00016438,2]
[389526338,1759698639419,-500.0,0.00016438,2]
[389526339,1759698639428,-632.81,0.00016438,2]
[389526340,1759698639437,-500.0,0.00016438,2]
[389526341,1759698639447,-500.0,0.00016438,2]
[389526342,1759698639456,-174.92,0.00016438,2]
[389526343,1759698639466,-660.12,0.00016438,2]
[389526344,1759698639475,-2236.38,0.00016438,2]
[389526345,1759698639485,-1996.38,0.00016438,2]
[389526346,1759698639495,-500.0,0.00016438,2]
[389526347,1759698639504,-500.0,0.00016438,2]
[389526348,1759698639514,-1469.353702,0.00016438,2]
[389526349,1759698639522,-500.0,0.00016548,2]
[389526350,1759698639532,-162.6680534,0.000166,2]
[389526351,1759698639541,-1175.3151264,0.000166,2]
[389526352,1759698639551,-297.5145665,0.000166,2]
[389526353,1759698639561,-1458.25770409,0.00016654,2]
[389526354,1759698639570,-348.0,0.00016699,2]
[389526355,1759698639580,-3266.7018679,0.00016709,2]
[389526356,1759698639590,-31011.4946826,0.00016709,2]
[389526357,1759698639599,-11822.9537079,0.00016709,2]
[389526358,1759698639608,-833.4178911,0.00016709,2]
[389526359,1759698639618,-151.0,0.00016709,2]
[389526361,1759698639626,-289.31838181,0.00016709,2]
[389526363,1759698639635,-151.0,0.00016709,2]
[389526365,1759698639645,-151.0,0.00016709,2]
[389526367,1759698639655,-151.0,0.00016709,2]
[389526369,1759698639665,-151.0,0.00016709,2]
[389526371,1759698639674,-151.0,0.00016709,2]
[389526373,1759698639683,-151.0,0.00016709,2]
[389526374,1759698639692,-151.0,0.00016709,2]
[389526375,1759698639701,-151.0,0.00016709,2]
[389526376,1759698639711,-151.0,0.00016709,2]
[389526377,1759698639721,-151.0,0.00016709,2]
[389526378,1759698639731,-151.0,0.00016709,2]
[389526379,1759698639741,-151.0,0.00016709,2]
[389526380,1759698639750,-3467.768628,0.00016709,2]
[389526381,1759698639760,-151.0,0.00016709,2]
[389526382,1759698639769,-3467.768628,0.00016709,2]
[389526383,1759698639779,-169.174223,0.00016709,2]
[389526384,1759698639799,-3467.768628,0.00016709,2]
[389526385,1759698639809,-155.350315,0.00016709,2]
[389526386,1759698639819,-3467.768628,0.00016709,2]
[389526387,1759698639828,-151.0,0.00016709,2]
[389526388,1759698639838,-151.0,0.00016709,2]
[389526389,1759698639847,-240.984144,0.00016709,2]
[389526390,1759698639857,-151.153507,0.00016709,2]
[389526392,1759698639867,-151.0,0.00016709,2]
[389526394,1759698639876,-151.0,0.00016709,2]
[389526396,1759698639885,-500.0,0.00016712,2]
[389526398,1759698639895,-500.0,0.00016712,2]
[389526399,1759698639905,-500.0,0.00016712,2]
[389526400,1759698639914,-500.0,0.00016712,2]
[389526402,1759698639923,-415.96968067,0.00016712,2]
[389526404,1759698639933,-501.77,0.00016712,2]
[389526406,1759698639943,-500.0,0.00016712,2]
[389526408,1759698639952,-507.78,0.00016712,2]
[389526410,1759698639962,-500.0,0.00016712,2]
[389526412,1759698639971,-1339.57,0.00016712,2]
[389526414,1759698639981,-500.0,0.00016712,2]
[389526416,1759698639990,-500.0,0.00016712,2]
[389526418,1759698639999,-500.0,0.00016712,2]
[389526420,1759698640009,-787.95,0.00016712,2]
[389526422,1759698640019,-500.0,0.00016712,2]
[389526424,1759698640029,-500.0,0.00016712,2]
[389526426,1759698640038,-500.0,0.00016712,2]
[389526428,1759698640048,-500.0,0.00016712,2]
[389526430,1759698640057,-1344.19,0.00016712,2]
[389526432,1759698640066,-500.0,0.00016712,2]
[389526434,1759698640076,-462.29215087,0.00016712,2]
[389526436,1759698640085,-500.0,0.00016712,2]
[389526438,1759698640095,-500.0,0.00016712,2]
[389526440,1759698640104,-500.0,0.00016712,2]
[389526442,1759698640114,-752.38,0.00016712,2]
[389526444,1759698640123,-596.19,0.00016712,2]
[389526446,1759698640133,-500.0,0.00016712,2]
[389526448,1759698640142,-500.0,0.00016712,2]
[389526451,1759698640151,-500.0,0.00016712,2]
[389526452,1759698640160,-500.0,0.00016712,2]
[389526455,1759698640171,-546.72,0.00016712,2]
[389526457,1759698640181,-621.04,0.00016712,2]
[389526459,1759698640193,-500.0,0.00016712,2]
[389526461,1759698640203,-500.0,0.00016712,2]
[389526463,1759698640213,-500.0,0.00016712,2]
[389526465,1759698640223,-552.08,0.00016712,2]
[389526466,1759698640232,-671.56,0.00016712,2]
[389526468,1759698640242,-500.0,0.00016712,2]
[389526469,1759698640252,-957.82,0.00016712,2]
[389526471,1759698640262,-500.0,0.00016712,2]
[389526473,1759698640271,-500.0,0.00016712,2]
[389526475,1759698640280,-500.0,0.00016712,2]
[389526477,1759698640290,-500.0,0.00016712,2]
[389526479,1759698640299,-1242.2,0.00016712,2]
[389526482,1759698640309,-420.77842656,0.00016712,2]
[389526484,1759698640319,-545.48788581,0.00016712,2]
[389526485,1759698640328,-500.0,0.00016712,2]
[389526488,1759698640337,-641.07,0.00016712,2]
[389526489,1759698640347,-500.0,0.00016712,2]
[389526491,1759698640356,-500.0,0.00016712,2]
[389526493,1759698640365,-500.0,0.00016712,2]
[389526495,1759698640375,-500.0,0.00016712,2]
[389526497,1759698640384,-500.0,0.00016712,2]
[389526499,1759698640394,-500.0,0.00016712,2]
[389526501,1759698640404,-500.0,0.00016712,2]
[389526503,1759698640413,-500.0,0.00016712,2]
[389526505,1759698640423,-1244.1,0.00016712,2]
[389526507,1759698640433,-555.01,0.00016712,2]
[389526508,1759698640442,-500.0,0.00016712,2]
[389526510,1759698640452,-500.0,0.00016712,2]
[389526511,1759698640462,-500.0,0.00016712,2]
[389526512,1759698640471,-3387.9,0.00016712,2]
[389526513,1759698640480,-1240.9,0.00016712,2]
[389526514,1759698640489,-776.22,0.00016712,2]
[389526515,1759698640499,-689.51,0.00016712,2]
[389526516,1759698640508,-500.0,0.00016712,2]
[389526517,1759698640517,-500.0,0.00016712,2]
[389526518,1759698640527,-1006.13,0.00016712,2]
[389526519,1759698640536,-703.74,0.00016712,2]
[389526520,1759698640545,-2623.75,0.00016712,2]
[389526521,1759698640554,-1531.23,0.00016712,2]
[389526522,1759698640563,-500.0,0.00016712,2]
[389526523,1759698640573,-500.0,0.00016712,2]
[389526524,1759698640582,-746.05,0.00016712,2]
[389526525,1759698640592,-500.0,0.00016712,2]
[389526526,1759698640601,-1256.8,0.00016712,2]
[389526527,1759698640611,-544.56,0.00016712,2]
[389526528,1759698640620,-589.58,0.00016712,2]
[389526529,1759698640629,-1817.09,0.00016712,2]
[389526530,1759698640638,-402.38449506,0.00016712,2]
[389526531,1759698640648,-500.0,0.00016712,2]
[389526532,1759698640660,-500.0,0.00016712,2]
[389526533,1759698640670,-2546.87,0.00016712,2]
[389526534,1759698640680,-1155.32,0.00016712,2]
[389526535,1759698640692,-2232.94,0.00016712,2]
[389526536,1759698640703,-503.21,0.00016712,2]
[389526537,1759698640712,-675.13,0.00016712,2]
[389526538,1759698640721,-500.0,0.00016712,2]
[389526539,1759698640734,-619.73,0.00016712,2]
[389526540,1759698640749,-500.0,0.00016712,2]
[389526541,1759698640759,-500.0,0.00016712,2]
[389526542,1759698640770,-500.0,0.00016712,2]
[389526543,1759698640780,-1898.34,0.00016712,2]
[389526544,1759698640789,-500.0,0.00016712,2]
[389526545,1759698640798,-500.0,0.00016712,2]
[389526546,1759698640808,-500.0,0.00016712,2]
[389526547,1759698640817,-500.0,0.00016712,2]
[389526548,1759698640826,-616.67,0.00016712,2]
[389526549,1759698640835,-1044.26,0.00016712,2]
[389526550,1759698640845,-500.0,0.00016712,2]
[389526551,1759698640854,-500.0,0.00016712,2]
[389526552,1759698640867,-849.6,0.00016712,2]
[389526553,1759698640876,-516.3,0.00016712,2]
[389526554,1759698640885,-500.0,0.00016712,2]
[389526555,1759698640894,-589.5,0.00016712,2]
[389526556,1759698640903,-500.0,0.00016712,2]
[389526557,1759698640912,-1614.46,0.00016712,2]
[389526558,1759698640922,-506.14,0.00016712,2]
[389526559,1759698640931,-943.07,0.00016712,2]
[389526560,1759698640940,-807.48,0.00016712,2]
[389526561,1759698640949,-500.0,0.00016712,2]
[389526562,1759698640959,-2074.48,0.00016712,2]
[389526563,1759698640968,-500.0,0.00016712,2]
[389526564,1759698640977,-500.0,0.00016712,2]
[389526565,1759698640987,-500.0,0.00016712,2]
[389526566,1759698640997,-500.0,0.00016712,2]
[389526567,1759698641007,-500.0,0.00016712,2]
[389526568,1759698641016,-500.0,0.00016712,2]
[389526569,1759698641026,-573.89,0.00016712,2]
[389526570,1759698641036,-500.0,0.00016712,2]
[389526571,1759698641046,-557.62,0.00016712,2]
[389526572,1759698641056,-2487.78,0.00016712,2]
[389526573,1759698641282,-500.0,0.00016712,2]
[389526574,1759698641292,-500.0,0.00016712,2]
[389526575,1759698641302,-500.0,0.00016712,2]
[389526576,1759698641311,-1062.27,0.00016712,2]
[389526577,1759698641320,-921.53,0.00016712,2]
[389526578,1759698641329,-4388.04,0.00016712,2]
[389526579,1759698641338,-1469.53,0.00016712,2]
[389526580,1759698641347,-500.0,0.00016712,2]
[389526581,1759698641356,-1137.41,0.00016712,2]
[389526582,1759698641366,-4246.51,0.00016712,2]
[389526583,1759698641375,-500.0,0.00016712,2]
[389526584,1759698641384,-250.50242612,0.00016712,2]
[389526585,1759698641393,-500.0,0.00016712,2]
[389526586,1759698641402,-500.0,0.00016712,2]
[389526587,1759698641411,-1066.23,0.00016712,2]
[389526588,1759698641420,-3511.75,0.00016712,2]
[389526589,1759698641430,-658.24,0.00016712,2]
[389526590,1759698641439,-500.0,0.00016712,2]
[389526591,1759698641448,-500.0,0.00016712,2]
[389526592,1759698641458,-1456.88,0.00016712,2]
[389526593,1759698641467,-1205.93,0.00016712,2]
[389526594,1759698641476,-738.23,0.00016712,2]
[389526595,1759698641486,-300.60047145,0.00016712,2]
[389526596,1759698641494,-500.0,0.00016712,2]
[389526597,1759698641504,-632.81,0.00016712,2]
[389526598,1759698641514,-500.0,0.00016712,2]
[389526599,1759698641523,-174.92530937,0.00016712,2]
[389526600,1759698641533,-660.12,0.00016712,2]
[389526601,1759698641542,-2236.38,0.00016712,2]
[389526602,1759698641551,-1996.38,0.00016712,2]
[389526603,1759698641561,-500.0,0.00016712,2]
[389526604,1759698641571,-300.0,0.00016766,2]
[389526605,1759698641580,-300.0,0.00016766,2]
[389526606,1759698641589,-300.0,0.00016766,2]
[389526607,1759698641598,-300.0,0.00016766,2]
[389526608,1759698641608,-300.0,0.00016766,2]
[389526609,1759698641617,-300.0,0.00016766,2]
[389526610,1759698641626,-300.0,0.00016766,2]
[389526611,1759698641635,-300.0,0.00016766,2]
[389526612,1759698641644,-300.0,0.00016766,2]
[389526613,1759698641656,-300.0,0.00016766,2]
[389526614,1759698641667,-300.0,0.00016766,2]
[389526615,1759698641678,-300.0,0.00016766,2]
[389526616,1759698641687,-300.0,0.00016766,2]
[389526617,1759698641698,-300.0,0.00016766,2]
[389526618,1759698641707,-300.0,0.00016766,2]
[389526619,1759698641718,-600.0,0.00016766,2]
[389526620,1759698641727,-151.0,0.00016766,2]
[389526621,1759698641740,-151.0,0.00016766,2]
[389526622,1759698641752,-162.6680534,0.000168,2]
[389526623,1759698641764,-587.6575632,0.000168,2]
[389526624,1759698641776,-162.6680534,0.000168,2]
[389526625,1759698641786,-297.5145665,0.000168,2]
[389526626,1759698641795,-953.2725285,0.000168,2]
[389526627,1759698641805,-297.5145665,0.000168,2]
[389526628,1759698641814,-587.6575632,0.000168,2]
[389526629,1759698641824,-162.6680534,0.000168,2]
[389526630,1759698641835,-162.6680534,0.000168,2]
[389526631,1759698641845,-297.5145665,0.000168,2]
[389526632,1759698641856,-587.6575632,0.000168,2]
[389526633,1759698641866,-619.6306745,0.000168,2]
[389526634,1759698641876,-162.6680534,0.000168,2]
[389526635,1759698641887,-1175.3151264,0.000168,2]
[389526636,1759698641896,-297.5145665,0.000168,2]
[389526637,1759698641905,-162.6680534,0.000168,2]
[389526638,1759698641916,-550.0437826,0.000168,2]
[389526639,1759698641925,-162.6680534,0.000168,2]
[389526640,1759698641935,-167.6057348,0.000168,2]
[389526641,1759698641947,-500.0,0.00016822,2]
[389526642,1759698641956,-250.0,0.00016935,2]
[389526643,1759698641966,-251.54027301,0.00016935,2]
[389526644,1759698641975,-250.0,0.00016935,2]
[389526645,1759698641987,-162.380719,0.00016935,2]
[389526646,1759698641996,-500.0,0.00016935,2]
[389526647,1759698642005,-151.0,0.00016935,2]
[389526648,1759698642015,-500.0,0.00016935,2]
[389526649,1759698642026,-250.0,0.00016935,2]
[389526650,1759698642036,-151.0,0.00016935,2]
[389526651,1759698642046,-500.0,0.00016935,2]
[389526652,1759698642055,-250.0,0.00016935,2]
[389526653,1759698642065,-151.0,0.00016935,2]
[389526654,1759698642074,-500.0,0.00016935,2]
[389526655,1759698642084,-250.0,0.00016935,2]
[389526656,1759698642093,-18603.8837,0.00016935,2]
[389526657,1759698642102,-605.36418013,0.00016935,2]
[389526658,1759698642112,-250.0,0.00016935,2]
[389526659,1759698642121,-250.0,0.00016935,2]
[389526660,1759698642129,-250.0,0.00016935,2]
[389526661,1759698642138,-2030.296672,0.00016935,2]
[389526662,1759698642148,-500.0,0.00016935,2]
[389526663,1759698642157,-500.0,0.00016935,2]
[389526664,1759698642166,-361.07194209,0.00016935,2]
[389526665,1759698642175,-162.380719,0.00016935,2]
[389526666,1759698642184,-151.0,0.00016935,2]
[389526667,1759698642193,-151.0,0.00016935,2]
[389526668,1759698642202,-151.0,0.00016935,2]
[389526669,1759698642212,-155.610953,0.00016935,2]
[389526670,1759698642221,-151.0,0.00016935,2]
[389526671,1759698642231,-151.0,0.00016935,2]
[389526672,1759698642240,-151.0,0.00016935,2]
[389526673,1759698642249,-151.0,0.00016935,2]
[389526674,1759698642260,-151.0,0.00016935,2]
[389526675,1759698642269,-151.0,0.00016935,2]
[389526676,1759698642278,-161.898412,0.00016935,2]
[389526677,1759698642288,-151.0,0.00016935,2]
[389526678,1759698642297,-151.0,0.00016935,2]
[389526679,1759698642306,-151.0,0.00016935,2]
[389526680,1759698642316,-151.0,0.00016935,2]
[389526682,1759698642326,-169.780732,0.00016935,2]
[389526683,1759698642335,-169.780732,0.00016935,2]
[389526684,1759698642345,-169.780732,0.00016935,2]
[389526685,1759698642354,-151.0,0.00016935,2]
[389526686,1759698642363,-168.907607,0.00016935,2]
[389526687,1759698642373,-169.780732,0.00016935,2]
[389526689,1759698642382,-153.189557,0.00016935,2]
[389526690,1759698642391,-151.0,0.00016935,2]
[389526691,1759698642401,-151.0,0.00016935,2]
[389526692,1759698642410,-151.0,0.00016935,2]
[389526693,1759698642419,-179.405922,0.00016935,2]
[389526694,1759698642428,-151.0,0.00016935,2]
[389526695,1759698642437,-151.0,0.00016935,2]
[389526696,1759698642447,-151.0,0.00016935,2]
[389526697,1759698642456,-151.0,0.00016935,2]
[389526698,1759698642465,-151.0,0.00016935,2]
[389526699,1759698642474,-151.0,0.00016935,2]
[389526700,1759698642484,-151.0,0.00016935,2]
[389526701,1759698642498,-151.0,0.00016935,2]
[389526702,1759698642508,-151.0,0.00016935,2]
[389526703,1759698642517,-151.0,0.00016935,2]
[389526704,1759698642527,-151.0,0.00016935,2]
[389526705,1759698642536,-151.0,0.00016935,2]
[389526706,1759698642546,-3467.768628,0.00016935,2]
[389526707,1759698642555,-151.0,0.00016935,2]
[389526708,1759698642565,-3467.768628,0.00016935,2]
[389526709,1759698642574,-3467.768628,0.00016935,2]
[389526710,1759698642583,-3467.768628,0.00016935,2]
[389526711,1759698642593,-151.0,0.00016935,2]
[389526712,1759698642602,-151.0,0.00016935,2]
[389526713,1759698642611,-2641.30402055,0.00016941,2]
[389526714,1759698642620,-183.4,0.00016985,2]
[389526715,1759698642630,-151.0,0.00016985,2]
[389526716,1759698642639,-151.0,0.00016985,2]
[389526717,1759698642648,-151.0,0.00016985,2]
[389526718,1759698642662,-151.0,0.00016985,2]
[389526719,1759698642672,-151.0,0.00016985,2]
[389526720,1759698642681,-181.123141,0.00016985,2]
[389526721,1759698642690,-151.0,0.00016985,2]
[389526722,1759698642701,-151.0,0.00016985,2]
[389526724,1759698642713,-151.0,0.00016985,2]
[389526726,1759698642723,-151.0,0.00016985,2]
[389526727,1759698642734,-151.0,0.00016985,2]
[389526728,1759698642743,-500.0,0.00016986,2]
[389526729,1759698642752,-500.0,0.00016986,2]
[389526730,1759698642761,-500.0,0.00016986,2]
[389526731,1759698642772,-500.0,0.00016986,2]
[389526732,1759698642781,-151.0,0.00016986,2]
[389526733,1759698642790,-151.0,0.00016986,2]
[389526734,1759698642799,-151.0,0.00016986,2]
[389526735,1759698642809,-501.77,0.00016986,2]
[389526736,1759698642818,-151.0,0.00016986,2]
[389526737,1759698642827,-151.0,0.00016986,2]
[389526738,1759698642837,-151.0,0.00016986,2]
[389526739,1759698642845,-500.0,0.00016986,2]
[389526740,1759698642854,-151.0,0.00016986,2]
[389526741,1759698642863,-151.0,0.00016986,2]
[389526742,1759698642873,-151.0,0.00016986,2]
[389526743,1759698642882,-151.0,0.00016986,2]
[389526744,1759698642892,-507.78,0.00016986,2]
[389526745,1759698642901,-500.0,0.00016986,2]
[389526746,1759698642910,-151.0,0.00016986,2]
[389526747,1759698642918,-1339.57,0.00016986,2]
[389526748,1759698642928,-500.0,0.00016986,2]
[389526749,1759698642937,-229.67497462,0.00016986,2]
[389526750,1759698642947,-500.0,0.00016986,2]
[389526751,1759698642956,-787.95,0.00016986,2]
[389526752,1759698642965,-500.0,0.00016986,2]
[389526753,1759698642974,-500.0,0.00016986,2]
[389526754,1759698642984,-151.0,0.00016986,2]
[389526755,1759698642993,-500.0,0.00016986,2]
[389526756,1759698643002,-151.0,0.00016986,2]
[389526757,1759698643011,-500.0,0.00016986,2]
[389526758,1759698643020,-151.0,0.00016986,2]
[389526760,1759698643029,-1344.19,0.00016986,2]
[389526761,1759698643038,-500.0,0.00016986,2]
[389526762,1759698643048,-151.0,0.00016986,2]
[389526763,1759698643057,-500.0,0.00016986,2]
[389526764,1759698643066,-752.38,0.00016986,2]
[389526765,1759698643075,-151.889801,0.00016986,2]
[389526766,1759698643084,-596.19,0.00016986,2]
[389526767,1759698643095,-500.0,0.00016986,2]
[389526768,1759698643105,-500.0,0.00016986,2]
[389526769,1759698643114,-151.0,0.00016986,2]
[389526770,1759698643124,-500.0,0.00016986,2]
[389526771,1759698643133,-151.0,0.00016986,2]
[389526772,1759698643142,-151.0,0.00016986,2]
[389526773,1759698643151,-500.0,0.00016986,2]
[389526774,1759698643161,-151.0,0.00016986,2]
[389526775,1759698643170,-151.0,0.00016986,2]
[389526776,1759698643180,-546.72,0.00016986,2]
[389526777,1759698643189,-621.04,0.00016986,2]
[389526778,1759698643198,-500.0,0.00016986,2]
[389526779,1759698643208,-500.0,0.00016986,2]
[389526780,1759698643218,-151.0,0.00016986,2]
[389526781,1759698643227,-552.08,0.00016986,2]
[389526782,1759698643236,-671.56,0.00016986,2]
[389526783,1759698643246,-957.82,0.00016986,2]
[389526784,1759698643255,-500.0,0.00016986,2]
[389526785,1759698643264,-500.0,0.00016986,2]
[389526786,1759698643273,-500.0,0.00016986,2]
[389526787,1759698643283,-500.0,0.00016986,2]
[389526788,1759698643292,-1242.2,0.00016986,2]
[389526789,1759698643301,-500.0,0.00016986,2]
[389526790,1759698643311,-641.07,0.00016986,2]
[389526791,1759698643320,-500.0,0.00016986,2]
[389526792,1759698643329,-500.0,0.00016986,2]
[389526793,1759698643339,-500.0,0.00016986,2]
[389526794,1759698643348,-500.0,0.00016986,2]
[389526795,1759698643358,-500.0,0.00016986,2]
[389526796,1759698643367,-500.0,0.00016986,2]
[389526797,1759698643376,-1244.1,0.00016986,2]
[389526798,1759698643385,-555.01,0.00016986,2]
[389526799,1759698643395,-500.0,0.00016986,2]
[389526800,1759698643404,-500.0,0.00016986,2]
[389526801,1759698643413,-500.0,0.00016986,2]
[389526802,1759698643422,-500.0,0.00016986,2]
[389526803,1759698643431,-3387.9,0.00016986,2]
[389526804,1759698643440,-1240.9,0.00016986,2]
[389526805,1759698643449,-776.22,0.00016986,2]
[389526806,1759698643458,-689.51,0.00016986,2]
[389526807,1759698643467,-500.0,0.00016986,2]
[389526808,1759698643476,-500.0,0.00016986,2]
[389526809,1759698643486,-1006.13,0.00016986,2]
[389526810,1759698643495,-703.74,0.00016986,2]
[389526811,1759698643504,-2623.75,0.00016986,2]
[389526812,1759698643513,-1531.23,0.00016986,2]
[389526813,1759698643522,-500.0,0.00016986,2]
[389526814,1759698643531,-500.0,0.00016986,2]
[389526815,1759698643540,-746.05,0.00016986,2]
[389526816,1759698643590,-500.0,0.00016986,2]
[389526817,1759698643600,-1256.8,0.00016986,2]
[389526818,1759698643609,-544.56,0.00016986,2]
[389526819,1759698643619,-589.58,0.00016986,2]
[389526820,1759698643628,-1817.09,0.00016986,2]
[389526821,1759698643638,-500.0,0.00016986,2]